[Event "Early-Titled-Tuesday-Blitz-October-17-2023"]
[Site "Chess.com"]
[Date "2023.10.17"]
[Round "6"]
[White "Yeremyan_ChessMate"]
[Black "Gravity_Chess"]
[Result "1-0"]
[WhiteElo "2741"]
[BlackElo "2849"]
[TimeControl "180+1"]
[EndTime "9:09:37 PDT"]
[Termination "Yeremyan_ChessMate won on time"]

1. e4 {[%clk 0:03:00]} 1... c5 {[%clk 0:03:00.4]} 2. Nc3 {[%clk 0:03:00.2]} 2...
e6 {[%clk 0:03:00.8]} 3. Nf3 {[%clk 0:02:59.5]} 3... Nc6 {[%clk 0:02:59.5]} 4.
g3 {[%clk 0:02:59.9]} 4... g6 {[%clk 0:02:51.3]} 5. Bg2 {[%clk 0:02:59.3]} 5...
Bg7 {[%clk 0:02:51.4]} 6. O-O {[%clk 0:03:00.1]} 6... Nge7 {[%clk 0:02:51.7]} 7.
d4 {[%clk 0:02:42.3]} 7... Nxd4 {[%clk 0:02:48.1]} 8. Nxd4 {[%clk 0:02:42.5]}
8... cxd4 {[%clk 0:02:49]} 9. Nb5 {[%clk 0:02:30.7]} 9... Qb6 {[%clk 0:02:49.3]}
10. a4 {[%clk 0:02:29.9]} 10... a6 {[%clk 0:02:47.6]} 11. Na3 {[%clk 0:02:30.6]}
11... O-O {[%clk 0:02:47.6]} 12. Nc4 {[%clk 0:02:31.2]} 12... Qc7 {[%clk
0:02:47.9]} 13. b3 {[%clk 0:02:30.7]} 13... Nc6 {[%clk 0:02:48.2]} 14. Ba3
{[%clk 0:02:30]} 14... Re8 {[%clk 0:02:44]} 15. Bd6 {[%clk 0:02:28.8]} 15... Qd8
{[%clk 0:02:44.3]} 16. e5 {[%clk 0:02:29.4]} 16... b6 {[%clk 0:02:14.2]} 17. b4
{[%clk 0:02:05.2]} 17... Bb7 {[%clk 0:01:54.2]} 18. b5 {[%clk 0:02:05.5]} 18...
axb5 {[%clk 0:01:55.1]} 19. axb5 {[%clk 0:02:04.1]} 19... Rxa1 {[%clk 0:01:56]}
20. Qxa1 {[%clk 0:02:03.5]} 20... Na5 {[%clk 0:01:56.8]} 21. Nxa5 {[%clk
0:02:01.2]} 21... Bxg2 {[%clk 0:01:56.1]} 22. Kxg2 {[%clk 0:02:01.7]} 22... bxa5
{[%clk 0:01:47.5]} 23. Qxd4 {[%clk 0:01:59.3]} 23... f6 {[%clk 0:01:46.6]} 24.
b6 {[%clk 0:01:50.5]} 24... Qa8+ {[%clk 0:01:23.1]} 25. Kg1 {[%clk 0:01:50.4]}
25... fxe5 {[%clk 0:01:23.4]} 26. Qa4 {[%clk 0:01:37.5]} 26... Qb7 {[%clk
0:00:55]} 27. Qxa5 {[%clk 0:01:37.4]} 27... e4 {[%clk 0:00:42.3]} 28. Qa7 {[%clk
0:01:37.1]} 28... Qc6 {[%clk 0:00:11.5]} 29. Qc7 {[%clk 0:01:36.8]} 29... Qxc7
{[%clk 0:00:02.8]} 30. bxc7 {[%clk 0:01:27.6]} 30... Rc8 {[%clk 0:00:02.1]} 31.
Rb1 {[%clk 0:01:26.9]} 1-0

[Event "Early-Titled-Tuesday-Blitz-October-17-2023"]
[Site "Chess.com"]
[Date "2023.10.17"]
[Round "6"]
[White "Aleksandar-Topalov"]
[Black "Tonychess32"]
[Result "0-1"]
[WhiteElo "2341"]
[BlackElo "2503"]
[TimeControl "180+1"]
[EndTime "9:09:38 PDT"]
[Termination "Tonychess32 won by checkmate"]

1. b3 {[%clk 0:03:00.9]} 1... Nf6 {[%clk 0:02:57.7]} 2. Bb2 {[%clk 0:03:01.1]}
2... e6 {[%clk 0:02:57.2]} 3. Nf3 {[%clk 0:03:00.8]} 3... d5 {[%clk 0:02:56.4]}
4. e3 {[%clk 0:03:01]} 4... Be7 {[%clk 0:02:55.6]} 5. d4 {[%clk 0:03:00.9]} 5...
b6 {[%clk 0:02:54.2]} 6. Nbd2 {[%clk 0:03:01]} 6... O-O {[%clk 0:02:52.4]} 7.
Bd3 {[%clk 0:03:00.8]} 7... c5 {[%clk 0:02:46.2]} 8. Ne5 {[%clk 0:02:58.6]} 8...
Bb7 {[%clk 0:02:45.5]} 9. O-O {[%clk 0:02:58.6]} 9... Nc6 {[%clk 0:02:43.9]} 10.
f4 {[%clk 0:02:55]} 10... Rc8 {[%clk 0:02:34.1]} 11. a3 {[%clk 0:02:51.1]} 11...
Ne4 {[%clk 0:02:23.1]} 12. Rf3 {[%clk 0:02:23.4]} 12... Nxe5 {[%clk 0:02:20.1]}
13. dxe5 {[%clk 0:02:13.1]} 13... c4 {[%clk 0:02:13.7]} 14. bxc4 {[%clk
0:01:06]} 14... Nxd2 {[%clk 0:02:12.5]} 15. Bxh7+ {[%clk 0:01:06]} 15... Kxh7
{[%clk 0:02:08.7]} 16. Rh3+ {[%clk 0:01:06]} 16... Kg8 {[%clk 0:02:07]} 17. Qh5
{[%clk 0:01:06.1]} 17... f5 {[%clk 0:02:04.3]} 18. Qh7+ {[%clk 0:00:50.9]} 18...
Kf7 {[%clk 0:02:03.1]} 19. Qh5+ {[%clk 0:00:48.1]} 19... g6 {[%clk 0:02:03.3]}
20. Qh7+ {[%clk 0:00:48.2]} 20... Ke8 {[%clk 0:02:03.3]} 21. Qxg6+ {[%clk
0:00:46.8]} 21... Kd7 {[%clk 0:02:03.4]} 22. Rh6 {[%clk 0:00:43.5]} 22... Kc7
{[%clk 0:01:53.1]} 23. Qxe6 {[%clk 0:00:35.4]} 23... Qd7 {[%clk 0:01:49.2]} 24.
cxd5 {[%clk 0:00:28.6]} 24... Bxd5 {[%clk 0:01:41.9]} 25. Qxd7+ {[%clk
0:00:22.3]} 25... Kxd7 {[%clk 0:01:42]} 26. Bd4 {[%clk 0:00:20]} 26... Rxc2
{[%clk 0:01:40.5]} 27. Rd1 {[%clk 0:00:17.2]} 27... Rfc8 {[%clk 0:01:34.1]} 28.
Rh7 {[%clk 0:00:13.8]} 28... Rc1 {[%clk 0:01:25]} 29. e6+ {[%clk 0:00:12]} 29...
Kxe6 {[%clk 0:01:23.2]} 30. Rxc1 {[%clk 0:00:12.3]} 30... Rxc1+ {[%clk
0:01:22.6]} 31. Kf2 {[%clk 0:00:12.9]} 31... Ne4+ {[%clk 0:01:22.9]} 32. Ke2
{[%clk 0:00:13.1]} 32... Bc4+ {[%clk 0:01:22.4]} 33. Kf3 {[%clk 0:00:10.4]}
33... Rf1# {[%clk 0:01:23.1]} 0-1

[Event "Early-Titled-Tuesday-Blitz-October-17-2023"]
[Site "Chess.com"]
[Date "2023.10.17"]
[Round "6"]
[White "ChessPromotionAlex"]
[Black "Khromkin"]
[Result "1-0"]
[WhiteElo "2673"]
[BlackElo "2519"]
[TimeControl "180+1"]
[EndTime "9:09:45 PDT"]
[Termination "ChessPromotionAlex won by resignation"]

1. e4 {[%clk 0:00:40.6]} 1... c5 {[%clk 0:02:56.2]} 2. Nf3 {[%clk 0:00:39.4]}
2... Nc6 {[%clk 0:02:56.6]} 3. d4 {[%clk 0:00:40]} 3... cxd4 {[%clk 0:02:56.9]}
4. Nxd4 {[%clk 0:00:40.9]} 4... g6 {[%clk 0:02:57.5]} 5. c4 {[%clk 0:00:40.8]}
5... Bg7 {[%clk 0:02:57.8]} 6. Be3 {[%clk 0:00:16.3]} 6... Nf6 {[%clk
0:02:58.1]} 7. Nc3 {[%clk 0:00:16.7]} 7... Ng4 {[%clk 0:02:58.5]} 8. Qxg4 {[%clk
0:00:16.6]} 8... Nxd4 {[%clk 0:02:59]} 9. Qd1 {[%clk 0:00:16.6]} 9... Ne6 {[%clk
0:02:59.8]} 10. Rc1 {[%clk 0:00:15.9]} 10... Qa5 {[%clk 0:03:00.3]} 11. Bd3
{[%clk 0:00:15.2]} 11... b6 {[%clk 0:03:00.8]} 12. O-O {[%clk 0:00:14.8]} 12...
Bb7 {[%clk 0:03:01.4]} 13. a3 {[%clk 0:00:12.2]} 13... O-O {[%clk 0:02:49.8]}
14. Kh1 {[%clk 0:00:08.8]} 14... Bd4 {[%clk 0:02:36.9]} 15. b4 {[%clk
0:00:06.4]} 15... Qe5 {[%clk 0:02:33.6]} 16. Bxd4 {[%clk 0:00:05.7]} 16... Qxd4
{[%clk 0:02:33.6]} 17. Nd5 {[%clk 0:00:05.2]} 17... Bxd5 {[%clk 0:02:20.7]} 18.
cxd5 {[%clk 0:00:06.1]} 18... Nf4 {[%clk 0:02:20.5]} 19. Bb1 {[%clk 0:00:06.6]}
19... Qe5 {[%clk 0:02:11.7]} 20. g3 {[%clk 0:00:03.5]} 20... Nh3 {[%clk
0:02:00.4]} 21. Kg2 {[%clk 0:00:03.4]} 21... f5 {[%clk 0:01:43.6]} 22. Kxh3
{[%clk 0:00:03.1]} 22... fxe4 {[%clk 0:01:43.9]} 23. Kg2 {[%clk 0:00:03.4]}
23... e3 {[%clk 0:01:36.3]} 24. Qe2 {[%clk 0:00:03.6]} 24... Qxd5+ {[%clk
0:01:33.8]} 25. f3 {[%clk 0:00:04]} 25... Qb3 {[%clk 0:01:23.2]} 26. Ba2 {[%clk
0:00:04.3]} 26... Qxa2 {[%clk 0:01:21.7]} 27. Qxa2+ {[%clk 0:00:05.1]} 27... e6
{[%clk 0:01:22.1]} 28. Qe2 {[%clk 0:00:05.7]} 28... d5 {[%clk 0:01:22.4]} 29.
Qxe3 {[%clk 0:00:06.6]} 29... Rae8 {[%clk 0:01:22.3]} 30. Qe5 {[%clk 0:00:07.2]}
30... Rf7 {[%clk 0:01:21.9]} 31. Rc7 {[%clk 0:00:07.2]} 31... Ref8 {[%clk
0:01:22.6]} 32. Qxe6 {[%clk 0:00:06.6]} 1-0

[Event "Early-Titled-Tuesday-Blitz-October-17-2023"]
[Site "Chess.com"]
[Date "2023.10.17"]
[Round "6"]
[White "Nitzan_Steinberg"]
[Black "TregubovP"]
[Result "1-0"]
[WhiteElo "2846"]
[BlackElo "2609"]
[TimeControl "180+1"]
[EndTime "9:09:46 PDT"]
[Termination "Nitzan_Steinberg won on time"]

1. Nf3 {[%clk 0:03:00.9]} 1... d5 {[%clk 0:02:59.8]} 2. g3 {[%clk 0:03:01.4]}
2... c5 {[%clk 0:02:57.1]} 3. Bg2 {[%clk 0:03:01.9]} 3... Nc6 {[%clk 0:02:57.7]}
4. O-O {[%clk 0:03:02.2]} 4... e5 {[%clk 0:02:57.4]} 5. d3 {[%clk 0:03:02.9]}
5... Nf6 {[%clk 0:02:57.1]} 6. e4 {[%clk 0:03:01.2]} 6... Be7 {[%clk 0:02:55.4]}
7. Nc3 {[%clk 0:02:57]} 7... d4 {[%clk 0:02:39]} 8. Ne2 {[%clk 0:02:56.7]} 8...
O-O {[%clk 0:02:33.9]} 9. Ne1 {[%clk 0:02:56]} 9... b5 {[%clk 0:02:31.4]} 10. h3
{[%clk 0:02:53.1]} 10... c4 {[%clk 0:02:29.1]} 11. f4 {[%clk 0:02:52]} 11... Nd7
{[%clk 0:02:24.9]} 12. Nf3 {[%clk 0:02:49]} 12... f6 {[%clk 0:02:22]} 13. g4
{[%clk 0:02:46.8]} 13... Nc5 {[%clk 0:02:19.7]} 14. Ng3 {[%clk 0:02:27.2]} 14...
Ba6 {[%clk 0:01:43.8]} 15. b3 {[%clk 0:02:16.8]} 15... Rc8 {[%clk 0:01:32.9]}
16. f5 {[%clk 0:02:16.1]} 16... cxd3 {[%clk 0:01:06.6]} 17. cxd3 {[%clk
0:02:16.3]} 17... b4 {[%clk 0:01:07.2]} 18. Ne1 {[%clk 0:02:16.2]} 18... Nb7
{[%clk 0:00:57.7]} 19. h4 {[%clk 0:02:14.5]} 19... Nd6 {[%clk 0:00:56.2]} 20.
Bd2 {[%clk 0:02:08.7]} 20... Nb5 {[%clk 0:00:55.4]} 21. Qf3 {[%clk 0:02:05.3]}
21... Nc3 {[%clk 0:00:54.8]} 22. Kh2 {[%clk 0:02:02.3]} 22... Nb8 {[%clk
0:00:50.9]} 23. Rg1 {[%clk 0:02:00.1]} 23... Nd7 {[%clk 0:00:50.2]} 24. Bf1
{[%clk 0:02:00.3]} 24... Kh8 {[%clk 0:00:49.4]} 25. Nh1 {[%clk 0:01:56.2]} 25...
h6 {[%clk 0:00:42.2]} 26. Nf2 {[%clk 0:01:55.1]} 26... Nc5 {[%clk 0:00:38.9]}
27. Qh3 {[%clk 0:01:55.2]} 27... Kg8 {[%clk 0:00:34.9]} 28. Nf3 {[%clk
0:01:54.4]} 28... Rc6 {[%clk 0:00:34.8]} 29. g5 {[%clk 0:01:50.1]} 29... fxg5
{[%clk 0:00:33.7]} 30. hxg5 {[%clk 0:01:50.4]} 30... hxg5 {[%clk 0:00:33]} 31.
Ng4 {[%clk 0:01:44.8]} 31... Bxd3 {[%clk 0:00:25]} 32. Nfxe5 {[%clk 0:01:42.1]}
32... Qc7 {[%clk 0:00:15.5]} 33. Bxd3 {[%clk 0:01:37.7]} 33... Bd6 {[%clk
0:00:11]} 34. Bc4+ {[%clk 0:01:37.5]} 34... Rf7 {[%clk 0:00:08.4]} 35. Bxf7+
{[%clk 0:01:37.5]} 35... Qxf7 {[%clk 0:00:08.6]} 36. Kg2 {[%clk 0:01:35.6]}
36... Qe8 {[%clk 0:00:04.5]} 37. Rh1 {[%clk 0:01:34.2]} 37... Bxe5 {[%clk
0:00:03]} 38. Qh8+ {[%clk 0:01:33.3]} 1-0

[Event "Early-Titled-Tuesday-Blitz-October-17-2023"]
[Site "Chess.com"]
[Date "2023.10.17"]
[Round "6"]
[White "beccrajoy"]
[Black "InitiatingASC"]
[Result "0-1"]
[WhiteElo "2009"]
[BlackElo "2356"]
[TimeControl "180+1"]
[EndTime "9:09:46 PDT"]
[Termination "InitiatingASC won by resignation"]

1. e4 {[%clk 0:03:00.9]} 1... c5 {[%clk 0:02:59.4]} 2. Nf3 {[%clk 0:02:59.7]}
2... Nc6 {[%clk 0:02:59.4]} 3. d4 {[%clk 0:03:00.6]} 3... cxd4 {[%clk
0:02:58.9]} 4. Nxd4 {[%clk 0:02:59.4]} 4... Nf6 {[%clk 0:02:59.5]} 5. Nc3 {[%clk
0:02:59]} 5... e5 {[%clk 0:03:00.1]} 6. Ndb5 {[%clk 0:02:58.4]} 6... h6 {[%clk
0:03:00.6]} 7. Nd6+ {[%clk 0:02:40.8]} 7... Bxd6 {[%clk 0:02:59.4]} 8. Qxd6
{[%clk 0:02:41.7]} 8... Qe7 {[%clk 0:03:00]} 9. Nb5 {[%clk 0:02:41]} 9... Qxd6
{[%clk 0:02:41.7]} 10. Nxd6+ {[%clk 0:02:40.8]} 10... Ke7 {[%clk 0:02:42.4]} 11.
Nf5+ {[%clk 0:02:16.5]} 11... Kf8 {[%clk 0:02:40]} 12. Bd3 {[%clk 0:02:13.3]}
12... Nb4 {[%clk 0:02:31.1]} 13. O-O {[%clk 0:02:11.8]} 13... Nxd3 {[%clk
0:02:30.6]} 14. cxd3 {[%clk 0:02:12.7]} 14... d5 {[%clk 0:02:30.9]} 15. Nd6
{[%clk 0:01:55.6]} 15... Ke7 {[%clk 0:02:28.4]} 16. Nxc8+ {[%clk 0:01:49.2]}
16... Raxc8 {[%clk 0:02:26.3]} 17. exd5 {[%clk 0:01:46.8]} 17... Nxd5 {[%clk
0:02:25.3]} 18. Re1 {[%clk 0:01:40.9]} 18... Kf6 {[%clk 0:02:22.8]} 19. b3
{[%clk 0:01:31]} 19... Rc2 {[%clk 0:02:18.5]} 20. Ba3 {[%clk 0:01:27.3]} 20...
Nf4 {[%clk 0:02:06.9]} 21. Bd6 {[%clk 0:01:20.6]} 21... Nxd3 {[%clk 0:01:57.2]}
22. Re3 {[%clk 0:01:20.6]} 22... Rd2 {[%clk 0:01:32.5]} 23. g3 {[%clk
0:00:45.6]} 23... Rd8 {[%clk 0:01:29.6]} 24. Ba3 {[%clk 0:00:45.1]} 24... Kg6
{[%clk 0:01:18.3]} 25. Rf3 {[%clk 0:00:32.2]} 25... e4 {[%clk 0:01:09]} 26. Re3
{[%clk 0:00:25.6]} 26... Nxf2 {[%clk 0:01:08.6]} 27. Rf1 {[%clk 0:00:20.7]}
27... Nh3+ {[%clk 0:01:05.5]} 28. Kh1 {[%clk 0:00:20.3]} 28... Rxa2 {[%clk
0:01:00.8]} 29. Be7 {[%clk 0:00:19.4]} 29... Rdd2 {[%clk 0:00:59.7]} 0-1

[Event "Early-Titled-Tuesday-Blitz-October-17-2023"]
[Site "Chess.com"]
[Date "2023.10.17"]
[Round "6"]
[White "Let_it_be_1"]
[Black "eljanov"]
[Result "1-0"]
[WhiteElo "2648"]
[BlackElo "2848"]
[TimeControl "180+1"]
[EndTime "9:10:00 PDT"]
[Termination "Let_it_be_1 won by resignation"]

1. e4 {[%clk 0:03:00.9]} 1... c6 {[%clk 0:03:00]} 2. d4 {[%clk 0:03:00.7]} 2...
d5 {[%clk 0:03:00.9]} 3. Nd2 {[%clk 0:03:01]} 3... dxe4 {[%clk 0:03:01.1]} 4.
Nxe4 {[%clk 0:03:01.7]} 4... Nf6 {[%clk 0:03:02]} 5. Nxf6+ {[%clk 0:03:01.9]}
5... exf6 {[%clk 0:03:02.9]} 6. c3 {[%clk 0:03:02.4]} 6... Bd6 {[%clk
0:03:03.3]} 7. Bd3 {[%clk 0:03:02.6]} 7... O-O {[%clk 0:03:03.6]} 8. Ne2 {[%clk
0:03:03]} 8... Re8 {[%clk 0:03:04]} 9. Qc2 {[%clk 0:03:03.4]} 9... h5 {[%clk
0:03:03.9]} 10. Be3 {[%clk 0:03:03.6]} 10... Nd7 {[%clk 0:03:02.8]} 11. O-O-O
{[%clk 0:03:03.4]} 11... Nf8 {[%clk 0:03:03.1]} 12. c4 {[%clk 0:03:03.5]} 12...
h4 {[%clk 0:03:01.8]} 13. h3 {[%clk 0:03:00.9]} 13... Be6 {[%clk 0:02:59.4]} 14.
Nc3 {[%clk 0:03:00.6]} 14... Rc8 {[%clk 0:02:58.5]} 15. c5 {[%clk 0:03:00.2]}
15... Bb8 {[%clk 0:02:57.6]} 16. Be4 {[%clk 0:03:00.1]} 16... Qa5 {[%clk
0:02:48.1]} 17. a3 {[%clk 0:02:57.8]} 17... b6 {[%clk 0:02:26.2]} 18. Qa4 {[%clk
0:02:46.4]} 18... Qxa4 {[%clk 0:02:17.8]} 19. Nxa4 {[%clk 0:02:46.1]} 19... Bb3
{[%clk 0:02:10.6]} 20. Bc2 {[%clk 0:02:46.3]} 20... Bxc2 {[%clk 0:02:07.7]} 21.
Kxc2 {[%clk 0:02:47.2]} 21... b5 {[%clk 0:02:03.5]} 22. Nc3 {[%clk 0:02:47]}
22... Ne6 {[%clk 0:01:56.3]} 23. d5 {[%clk 0:02:33.2]} 23... cxd5 {[%clk
0:01:56]} 24. Rxd5 {[%clk 0:02:33.1]} 24... Bf4 {[%clk 0:01:47.1]} 25. b4 {[%clk
0:02:18.3]} 25... Bxe3 {[%clk 0:01:45.9]} 26. fxe3 {[%clk 0:02:18.3]} 26... Ng5
{[%clk 0:01:31.3]} 27. Nxb5 {[%clk 0:02:01.2]} 27... Rxe3 {[%clk 0:01:30.9]} 28.
Rd3 {[%clk 0:01:51.7]} 28... Re2+ {[%clk 0:01:02.2]} 29. Rd2 {[%clk 0:01:51.5]}
29... Re7 {[%clk 0:00:53.8]} 30. Rhd1 {[%clk 0:01:49.3]} 30... Kh7 {[%clk
0:00:53.7]} 31. Rd7 {[%clk 0:01:38.7]} 31... Re2+ {[%clk 0:00:51.2]} 32. R1d2
{[%clk 0:01:39]} 32... Rxd2+ {[%clk 0:00:47.6]} 33. Kxd2 {[%clk 0:01:32.7]}
33... a6 {[%clk 0:00:43.6]} 34. Na7 {[%clk 0:01:13]} 34... Re8 {[%clk
0:00:08.9]} 35. c6 {[%clk 0:01:06.6]} 1-0

[Event "Early-Titled-Tuesday-Blitz-October-17-2023"]
[Site "Chess.com"]
[Date "2023.10.17"]
[Round "6"]
[White "pirulillo"]
[Black "Rital44"]
[Result "1-0"]
[WhiteElo "2345"]
[BlackElo "2479"]
[TimeControl "180+1"]
[EndTime "9:10:00 PDT"]
[Termination "pirulillo won by resignation"]

1. e4 {[%clk 0:03:00.9]} 1... c5 {[%clk 0:02:50.3]} 2. Nf3 {[%clk 0:02:59.6]}
2... Nc6 {[%clk 0:02:49.1]} 3. b4 {[%clk 0:02:58.9]} 3... cxb4 {[%clk
0:02:48.6]} 4. d4 {[%clk 0:02:58]} 4... e6 {[%clk 0:02:46.9]} 5. d5 {[%clk
0:02:56.3]} 5... Nb8 {[%clk 0:02:45.2]} 6. Bb2 {[%clk 0:02:50.9]} 6... Nf6
{[%clk 0:02:43.9]} 7. Bd3 {[%clk 0:02:40.4]} 7... d6 {[%clk 0:02:39.5]} 8. dxe6
{[%clk 0:02:33.5]} 8... Bxe6 {[%clk 0:02:38.8]} 9. Nbd2 {[%clk 0:02:24]} 9...
Be7 {[%clk 0:02:35.6]} 10. O-O {[%clk 0:02:23]} 10... O-O {[%clk 0:02:33.6]} 11.
Nd4 {[%clk 0:02:23.5]} 11... Bg4 {[%clk 0:02:22.6]} 12. f3 {[%clk 0:02:21.6]}
12... Bd7 {[%clk 0:02:21.4]} 13. f4 {[%clk 0:02:17]} 13... Nc6 {[%clk
0:02:19.2]} 14. N2b3 {[%clk 0:02:15.1]} 14... a5 {[%clk 0:02:15]} 15. Nxc6
{[%clk 0:02:06.5]} 15... bxc6 {[%clk 0:02:08.3]} 16. e5 {[%clk 0:02:05.4]} 16...
Bg4 {[%clk 0:01:59.3]} 17. Qe1 {[%clk 0:02:03.1]} 17... dxe5 {[%clk 0:01:43.9]}
18. fxe5 {[%clk 0:02:01.3]} 18... Nd5 {[%clk 0:01:41.8]} 19. Qg3 {[%clk
0:01:57.2]} 19... Be6 {[%clk 0:01:38.9]} 20. Nd4 {[%clk 0:01:57.4]} 20... Bc5
{[%clk 0:01:30.7]} 21. Kh1 {[%clk 0:01:56.8]} 21... Nc3 {[%clk 0:01:13.8]} 22.
Nxe6 {[%clk 0:01:51.1]} 22... fxe6 {[%clk 0:01:14.1]} 23. Qh3 {[%clk 0:01:48.1]}
23... g6 {[%clk 0:00:57]} 24. Qxe6+ {[%clk 0:01:46.3]} 24... Kh8 {[%clk
0:00:57]} 25. Bxc3 {[%clk 0:01:39.4]} 25... bxc3 {[%clk 0:00:56.2]} 26. Rxf8+
{[%clk 0:01:34.3]} 26... Bxf8 {[%clk 0:00:50.2]} 27. Rf1 {[%clk 0:01:35.2]}
27... Bg7 {[%clk 0:00:49.5]} 28. Bc4 {[%clk 0:01:22.9]} 28... Qe8 {[%clk
0:00:38.3]} 29. Qxe8+ {[%clk 0:01:19.6]} 29... Rxe8 {[%clk 0:00:38.8]} 30. e6
{[%clk 0:01:19.5]} 30... Kg8 {[%clk 0:00:26.2]} 31. e7+ {[%clk 0:01:13.8]} 31...
Kh8 {[%clk 0:00:26.3]} 32. Rf7 {[%clk 0:01:13.9]} 32... Bh6 {[%clk 0:00:21.5]}
33. g3 {[%clk 0:01:07.5]} 33... c5 {[%clk 0:00:21.4]} 34. Bb5 {[%clk 0:01:04.5]}
1-0

[Event "Early-Titled-Tuesday-Blitz-October-17-2023"]
[Site "Chess.com"]
[Date "2023.10.17"]
[Round "6"]
[White "jasonbolivar"]
[Black "OLDTERMINATOR"]
[Result "1-0"]
[WhiteElo "2315"]
[BlackElo "1638"]
[TimeControl "180+1"]
[EndTime "9:10:01 PDT"]
[Termination "jasonbolivar won on time"]

1. e4 {[%clk 0:02:49.4]} 1... e6 {[%clk 0:02:56.4]} 2. d4 {[%clk 0:02:48.7]}
2... d5 {[%clk 0:02:56]} 3. Nc3 {[%clk 0:02:48.9]} 3... Bb4 {[%clk 0:02:53.1]}
4. e5 {[%clk 0:02:48.1]} 4... c5 {[%clk 0:02:53]} 5. a3 {[%clk 0:02:47.9]} 5...
Bxc3+ {[%clk 0:02:52.2]} 6. bxc3 {[%clk 0:02:48.8]} 6... Ne7 {[%clk 0:02:51.3]}
7. Qg4 {[%clk 0:02:49.3]} 7... Qc7 {[%clk 0:02:49.8]} 8. Qxg7 {[%clk 0:02:49.3]}
8... Rg8 {[%clk 0:02:47.5]} 9. Qxh7 {[%clk 0:02:49.7]} 9... cxd4 {[%clk
0:02:47.6]} 10. Ne2 {[%clk 0:02:49.9]} 10... Nbc6 {[%clk 0:02:38.5]} 11. f4
{[%clk 0:02:49.2]} 11... Bd7 {[%clk 0:02:30.2]} 12. h4 {[%clk 0:02:46.5]} 12...
dxc3 {[%clk 0:01:59.3]} 13. h5 {[%clk 0:02:45.2]} 13... O-O-O {[%clk 0:01:50.5]}
14. Qd3 {[%clk 0:02:43.4]} 14... d4 {[%clk 0:01:31.4]} 15. h6 {[%clk 0:02:43.1]}
15... Rh8 {[%clk 0:01:22.1]} 16. g4 {[%clk 0:02:39.9]} 16... Rdg8 {[%clk
0:01:02]} 17. g5 {[%clk 0:02:28.5]} 17... Nf5 {[%clk 0:00:54.4]} 18. Rb1 {[%clk
0:02:13.1]} 18... Na5 {[%clk 0:00:24.8]} 19. Nxd4 {[%clk 0:01:19.4]} 19... Nxd4
{[%clk 0:00:20.5]} 20. Qxd4 {[%clk 0:01:19.5]} 20... b6 {[%clk 0:00:18.7]} 21.
Rh3 {[%clk 0:01:13]} 21... Bc6 {[%clk 0:00:11.6]} 22. Ba6+ {[%clk 0:01:00.5]}
22... Kb8 {[%clk 0:00:09.8]} 23. Qd6 {[%clk 0:01:00.6]} 23... Qxd6 {[%clk
0:00:06]} 24. exd6 {[%clk 0:01:01.5]} 24... Be4 {[%clk 0:00:04.8]} 25. Rxc3
{[%clk 0:00:59.9]} 25... Rd8 {[%clk 0:00:02.8]} 26. Bb2 {[%clk 0:00:51.2]} 1-0

[Event "Early-Titled-Tuesday-Blitz-October-17-2023"]
[Site "Chess.com"]
[Date "2023.10.17"]
[Round "6"]
[White "Witty_Alien"]
[Black "FunnyDuck66"]
[Result "0-1"]
[WhiteElo "2239"]
[BlackElo "2464"]
[TimeControl "180+1"]
[EndTime "9:10:02 PDT"]
[Termination "FunnyDuck66 won on time"]

1. e4 {[%clk 0:03:00.9]} 1... c6 {[%clk 0:02:59.8]} 2. d4 {[%clk 0:02:59.2]}
2... d5 {[%clk 0:02:59.2]} 3. Nd2 {[%clk 0:03:00.1]} 3... dxe4 {[%clk
0:02:59.5]} 4. Nxe4 {[%clk 0:02:59.8]} 4... Nf6 {[%clk 0:02:59.7]} 5. Ng5 {[%clk
0:03:00.4]} 5... Bf5 {[%clk 0:02:57.3]} 6. Bc4 {[%clk 0:02:33.6]} 6... e6 {[%clk
0:02:55.6]} 7. N1f3 {[%clk 0:02:29.3]} 7... Nbd7 {[%clk 0:02:53.8]} 8. O-O
{[%clk 0:02:22.7]} 8... h6 {[%clk 0:02:53.3]} 9. Nh3 {[%clk 0:02:06.8]} 9...
Bxh3 {[%clk 0:02:52]} 10. gxh3 {[%clk 0:02:07.7]} 10... Bd6 {[%clk 0:02:52.1]}
11. Kh1 {[%clk 0:02:07.1]} 11... Ne4 {[%clk 0:02:50.9]} 12. Be3 {[%clk
0:01:35.6]} 12... Ndf6 {[%clk 0:02:15.8]} 13. Rg1 {[%clk 0:01:32.6]} 13... g5
{[%clk 0:01:44.6]} 14. Bd3 {[%clk 0:00:59.7]} 14... Qc7 {[%clk 0:01:42]} 15. c4
{[%clk 0:00:57.5]} 15... O-O-O {[%clk 0:01:39]} 16. Qa4 {[%clk 0:00:54.5]} 16...
Kb8 {[%clk 0:01:31]} 17. d5 {[%clk 0:00:49.9]} 17... Bc5 {[%clk 0:01:22.3]} 18.
d6 {[%clk 0:00:14.5]} 18... Qxd6 {[%clk 0:01:14.4]} 19. Rad1 {[%clk 0:00:10.8]}
19... Qc7 {[%clk 0:01:01.2]} 20. Bxc5 {[%clk 0:00:07.2]} 20... Nxc5 {[%clk
0:01:00.4]} 21. Qa3 {[%clk 0:00:07.8]} 21... Nce4 {[%clk 0:00:58.7]} 22. Rg2
{[%clk 0:00:03.6]} 22... Qf4 {[%clk 0:00:56.9]} 23. Bxe4 {[%clk 0:00:02.4]}
23... Rxd1+ {[%clk 0:00:56.2]} 24. Ng1 {[%clk 0:00:02.2]} 24... Nxe4 {[%clk
0:00:55]} 25. Qe7 {[%clk 0:00:01.4]} 25... Qf3 {[%clk 0:00:50.3]} 0-1